bitfinex/quotes_ETHUSD_20220103
["timestamp","ask_amount","ask_price","bid_price","bid_amount"]
[1641234145588,0.00297486,3761.4,3761.3,2.57084356]
[1641234145986,0.00297486,3761.4,3761.3,7.90004451]
[1641234146188,0.00297486,3761.4,3761.3,10.49117143]
[1641234146817,0.00297486,3761.4,3761.3,2.74117143]
[1641234147430,0.00297486,3761.4,3761.3,0.15004451]
[1641234148223,0.00297486,3761.4,3761.3,3.00004451]
[1641234149025,0.00297486,3761.4,3761.3,0.15004451]
[1641234152075,0.00297486,3761.4,3761.2,0.00170527]
[1641234152472,0.00297486,3761.4,3761.1,0.0022737]
[1641234152870,0.00297486,3761.4,3761.1,0.20160346]
[1641234153272,0.00297486,3761.4,3761.2,0.00170527]
[1641234153472,0.00297486,3761.4,3761.2,0.66648837]
[1641234154927,0.00297486,3761.4,3761.3,0.19932976]
[1641234165288,0.00297486,3761.4,3761.3,5.51662976]
[1641234178833,2.73014378,3761.4,3761.3,5.51662976]
[1641234182191,2.72799858,3761.4,3761.3,5.51662976]
[1641234205881,2.72799858,3761.4,3761.3,5.3173]
[1641234208135,2.72799858,3761.4,3761.3,5.5883005]
[1641234208835,2.72799858,3761.4,3761.3,5.3173]
[1641234210692,3.10999858,3761.4,3761.3,5.3173]
[1641234211089,3.51319858,3761.4,3761.3,5.3173]
[1641234211286,3.21319858,3761.4,3761.3,5.3173]
[1641234211587,3.21239858,3761.4,3761.3,5.3173]
[1641234211987,3.21319858,3761.4,3761.3,5.3173]
[1641234212188,3.21479858,3761.4,3761.3,5.3173]
[1641234212389,3.21159858,3761.4,3761.3,5.3173]
[1641234212587,3.21319858,3761.4,3761.3,5.3173]
[1641234212786,3.21479858,3761.4,3761.3,5.3173]
[1641234212986,3.21239858,3761.4,3761.3,5.3173]
[1641234213488,3.21079858,3761.4,3761.3,5.3173]
[1641234213688,3.20999858,3761.4,3761.3,5.3173]
[1641234213937,3.10999858,3761.4,3761.3,5.3173]
[1641234214836,5.75375184,3761.4,3761.3,5.3173]
[1641234215440,3.10999858,3761.4,3761.3,5.3173]
[1641234217981,5.75300154,3761.4,3761.3,5.3173]
[1641234218482,0.38282966,3761.4,3761.3,5.3173]
[1641234219084,5.75300154,3761.4,3761.3,5.3173]
[1641234220886,5.37100154,3761.4,3761.3,5.3173]
[1641234221088,5.37100154,3761.4,3761.3,8.34286552]
[1641234221287,3.66477644,3761.4,3761.3,14.0173]
[1641234221548,3.66477644,3761.4,3761.3,5.9173]
[1641234221747,3.66477644,3761.4,3761.3,6.9173]
[1641234221947,3.66477644,3761.4,3761.3,6.6173]
[1641234222150,3.61477644,3761.4,3761.3,12.1673]
[1641234222348,3.61477644,3761.4,3761.3,6.6173]
[1641234222549,3.61477644,3761.4,3761.3,7.94637]
[1641234222753,0.97177348,3761.4,3761.3,6.94637]
[1641234223355,0.57689384,3761.9,3761.4,7.25]
[1641234223557,0.57689384,3761.9,3761.7,1.3289923]
[1641234223755,0.00170527,3761.8,3761.7,4.2746544]
[1641234223958,0.00170527,3761.8,3761.7,9.5913544]
[1641234224358,0.00170527,3761.8,3761.7,5.9811923]
[1641234226199,0.00170527,3761.8,3761.7,6.0865513]
[1641234238356,0.00170527,3761.8,3761.7,5.422059]
[1641234240306,2.64470823,3761.8,3761.7,5.422059]
[1641234241107,0.00170527,3761.8,3761.7,5.422059]
[1641234242507,2.64470823,3761.8,3761.7,5.422059]
[1641234243710,2.33852778,3761.8,3761.7,5.422059]
[1641234245752,2.33852778,3761.8,3761.7,6.04145961]
[1641234253641,2.33682251,3761.8,3761.7,6.04145961]
[1641234254439,2.33682251,3761.8,3761.7,5.93610061]
[1641234257799,2.33682251,3761.8,3761.7,5.63610061]
[1641234269043,2.33682251,3761.8,3761.7,8.18413929]
[1641234269244,2.33682251,3761.8,3761.7,5.63610061]
[1641234269443,2.33682251,3761.8,3761.7,8.17278445]
[1641234269644,2.33682251,3761.8,3761.7,5.63610061]
[1641234270299,2.33328121,3761.8,3761.7,5.63610061]
[1641234273706,2.33328121,3761.8,3761.7,8.15249847]
[1641234273941,2.33328121,3761.8,3761.7,5.63610061]
[1641234275447,2.33328121,3761.8,3761.7,8.14955713]
[1641234275645,2.33328121,3761.8,3761.7,5.93610061]
[1641234277047,2.03328121,3761.8,3761.7,8.49579457]
[1641234277350,0.57689384,3761.9,3761.8,8.4]
[1641234277551,0.57689384,3761.9,3761.8,12.53414515]
[1641234277795,0.06157984,3762.6,3761.9,8.4]
[1641234277996,0.06157984,3762.6,3762.0,9.24524148]
[1641234278195,0.06157984,3762.6,3762.3,0.6643772]
[1641234278196,0.00341054,3762.5,3762.3,0.6643772]
[1641234278396,0.00341054,3762.5,3762.4,15.53974325]
[1641234278596,0.06157984,3762.6,3762.4,15.53974325]
[1641234278601,0.06157984,3762.6,3762.4,17.58611325]
[1641234278796,0.06157984,3762.6,3762.5,11.59275231]
[1641234279000,7.91659172,3763.2,3762.6,8.35]
[1641234279201,7.91659172,3763.2,3762.9,0.664229]
[1641234279400,7.91659172,3763.2,3763.0,8.14991839]
[1641234279601,7.91659172,3763.2,3763.1,7.49774826]
[1641234279804,7.91659172,3763.2,3763.1,8.41254826]
[1641234280002,7.92058123,3763.2,3763.1,9.41246288]
[1641234280404,1.08923832,3763.2,3763.1,9.41246288]
[1641234286592,1.08923832,3763.2,3763.1,6.61471462]
[1641234289876,1.08923832,3763.2,3763.1,5.6148]
[1641234290076,1.38923832,3763.2,3763.1,5.6148]
[1641234290283,1.38923832,3763.2,3762.5,1.19782014]
[1641234290480,1.38923832,3763.2,3761.9,3.54307755]
[1641234290481,0.01236171,3762.6,3761.9,3.54307755]
[1641234290682,0.7965,3762.4,3761.9,1.83147755]
[1641234290982,0.7965,3762.4,3761.6,2.08304431]
[1641234290983,0.7965,3761.8,3761.6,2.08304431]
[1641234291183,1.1785,3761.7,3761.6,2.08304431]
[1641234291378,1.2945,3761.7,3761.6,2.08304431]
[1641234291580,1.5953,3761.7,3761.6,2.08304431]
[1641234291779,1.5961,3761.7,3761.6,0.105359]
[1641234292081,32.37306211,3761.7,3761.6,0.105359]
[1641234292279,32.37466211,3761.7,3761.6,0.105359]
[1641234292479,32.37386211,3761.7,3761.6,0.105359]
[1641234292696,32.37146211,3761.7,3761.6,0.105359]
[1641234292897,32.37226211,3761.7,3761.6,0.105359]
[1641234293099,32.37306211,3761.7,3761.6,0.105359]
[1641234293304,32.37226211,3761.7,3761.6,0.105359]
[1641234293502,32.16726211,3761.7,3761.6,0.105359]
[1641234293700,32.16886211,3761.7,3761.6,0.105359]
[1641234293900,32.16486211,3761.7,3761.6,0.105359]
[1641234294100,2.24258,3761.7,3761.6,0.105359]
[1641234294305,1.1785,3761.7,3761.6,0.105359]
[1641234294906,1.1785,3761.7,3761.6,1.49655039]
[1641234295705,0.9985,3761.7,3761.6,1.49655039]
[1641234296545,0.9985,3761.7,3761.6,0.105359]
[1641234297747,1.2985,3761.7,3761.6,0.105359]
[1641234297948,2.95004334,3761.7,3761.6,0.105359]
[1641234301103,2.65004334,3761.7,3761.6,0.105359]
[1641234301702,2.95004334,3761.7,3761.6,0.105359]
[1641234302705,2.65004334,3761.7,3761.6,0.105359]
[1641234303606,0.9985,3761.7,3761.6,0.105359]
[1641234304250,0.9985,3761.7,3761.1,0.54137955]
[1641234304643,0.9985,3761.7,3761.2,0.00454739]
[1641234304843,1.66326,3761.7,3761.2,0.00454739]
[1641234305447,1.96326,3761.7,3761.2,0.00454739]
[1641234306548,0.7965,3761.5,3761.2,0.00454739]
[1641234306747,0.7965,3761.5,3761.3,5.3172]
[1641234307147,0.7965,3761.5,3761.4,0.00341055]
[1641234309896,2.80592965,3761.5,3761.4,0.96069225]
[1641234315609,5.81244731,3761.5,3761.4,0.96069225]
[1641234316805,3.85280965,3761.5,3761.4,0.96069225]
[1641234318108,3.85280965,3761.5,3761.4,0.00341055]
[1641234318951,3.85280965,3761.5,3761.4,0.96079646]
[1641234320346,1.84338,3761.5,3761.4,0.00341055]
[1641234327243,4.39562768,3761.5,3761.4,0.00341055]
[1641234327445,1.84338,3761.5,3761.4,0.00341055]
[1641234336652,3.85115603,3761.5,3761.4,0.00341055]
[1641234337054,3.85115603,3761.5,3761.3,5.3172]
[1641234337456,0.7965,3761.4,3761.3,5.3172]
[1641234337900,1.0965,3761.4,3761.3,5.32117897]
[1641234338101,3.10427603,3761.4,3761.3,6.27881255]
[1641234341106,3.10427603,3761.4,3761.3,5.32117897]
[1641234343252,5.59220418,3761.4,3761.3,5.32117897]
[1641234343453,3.48627603,3761.4,3761.3,5.32117897]
[1641234346398,2.38977603,3761.4,3761.3,5.32117897]
[1641234346599,3.60060332,3761.8,3761.5,8.4]
[1641234346799,3.12330332,3761.8,3761.7,8.41206817]
[1641234346997,3.30395026,3762.3,3761.8,5.55]
[1641234347201,1.07824011,3763.2,3762.0,0.01277445]
[1641234347202,5.2657666,3763.2,3762.0,0.01277445]
[1641234347599,3.684e-05,3762.2,3762.1,1.22784003]
[1641234347802,0.06204101,3762.5,3762.1,6.84404003]
[1641234348001,0.06204101,3762.5,3762.3,0.66433]
[1641234348202,0.00117369,3762.4,3762.3,0.66433]
[1641234348402,0.00117369,3762.4,3762.3,6.28013]
[1641234348950,0.00117369,3762.4,3762.3,8.82319254]
[1641234349150,0.00117369,3762.4,3762.3,11.37319254]
[1641234349350,7.369e-05,3762.4,3762.3,12.03752044]
[1641234350760,1.07824011,3763.2,3762.6,1.32867]
[1641234350958,1.07824011,3763.2,3762.8,1.3287533]
[1641234351158,0.00397896,3763.1,3762.9,1.36171341]
[1641234351561,0.00341054,3763.0,3762.9,1.36171341]
[1641234351760,0.00341054,3763.0,3762.9,3.77928086]
[1641234352562,0.00341054,3763.0,3762.9,4.07928086]
[1641234353593,0.00341054,3763.0,3762.9,1.66171341]
[1641234353996,1.07824011,3763.2,3763.0,5.9]
[1641234354196,1.07824011,3763.2,3763.0,6.5643449]
[1641234354395,1.07824011,3763.2,3763.1,0.3]
[1641234354798,1.07937696,3763.2,3763.1,0.3]
[1641234357345,1.07937696,3763.2,3763.1,2.75673721]
[1641234357546,1.07937696,3763.2,3763.1,8.43888222]
[1641234357745,1.07937696,3763.2,3763.1,0.3]
[1641234358151,1.07937696,3763.2,3763.1,5.05]
[1641234358547,1.07937696,3763.2,3763.1,7.49254451]
[1641234358748,1.07937696,3763.2,3763.1,5.05]
[1641234359250,1.07937696,3763.2,3763.1,7.51247298]
[1641234359450,1.07937696,3763.2,3763.1,5.05]
[1641234359649,1.07937696,3763.2,3763.1,0.3]
[1641234360326,1.07937696,3763.2,3763.1,7.1]
[1641234360526,1.07937696,3763.2,3763.1,0.3]
[1641234362329,1.07937696,3763.2,3763.1,9.94537668]
[1641234362727,1.07937696,3763.2,3763.1,2.74537668]
[1641234362929,1.07937696,3763.2,3763.1,6.69537668]
[1641234363528,1.08177766,3763.2,3763.1,12.01017668]
[1641234364843,1.08177766,3763.2,3763.1,9.5648]
[1641234365043,1.08177766,3763.2,3763.1,12.05045418]
[1641234365250,7.766e-05,3763.2,3763.1,9.5648]
[1641234365449,7.766e-05,3763.2,3763.1,10.57759987]
[1641234365954,7.766e-05,3763.2,3763.1,9.57759987]
[1641234366150,7.766e-05,3763.2,3763.1,5.62759987]
[1641234366551,7.766e-05,3763.2,3763.1,5.3148]
[1641234366949,7.766e-05,3763.2,3763.1,7.06833735]
[1641234368999,0.00102708,3763.2,3763.1,7.06833735]
[1641234369201,0.00102708,3763.2,3763.1,8.10783498]
[1641234371208,0.00102708,3763.2,3763.1,8.11044828]
[1641234373053,0.00102708,3763.2,3763.1,8.41044828]
[1641234377001,0.00102708,3763.2,3763.1,8.11044828]
[1641234388053,0.00102708,3763.2,3763.1,7.07095065]
[1641234388255,3.06409519,3763.2,3763.1,7.07095065]
[1641234388453,3.36409519,3763.2,3763.1,7.07095065]
[1641234389157,3.36409519,3763.2,3763.1,5.3174133]
[1641234389351,7.24724819,3763.2,3763.1,5.3174133]
[1641234390204,4.60379133,3763.2,3763.1,5.3174133]
[1641234391405,1.62272322,3763.2,3763.1,5.3174133]
[1641234393947,1.62272322,3763.2,3763.1,7.07136828]
[1641234394353,1.24072322,3763.2,3763.1,7.07136828]
[1641234395154,1.24072322,3763.2,3763.1,5.3174133]
[1641234395558,0.00102708,3763.2,3763.1,7.0713537]
[1641234396253,1.24072322,3763.2,3763.1,7.0713537]
[1641234397154,0.00102708,3763.2,3763.1,7.0713537]
[1641234397803,1.24072322,3763.2,3763.1,7.0713537]
[1641234398205,1.24072322,3763.2,3763.1,5.3174133]
[1641234398405,0.00102708,3763.2,3763.1,5.3174133]
[1641234398903,1.24072322,3763.2,3763.1,5.3174133]
[1641234400115,1.24072322,3763.2,3763.1,7.07138779]
[1641234401956,1.54072322,3763.2,3763.1,7.07138779]
[1641234402360,1.54072322,3763.2,3763.1,5.3174133]
[1641234405826,4.03331215,3763.2,3763.1,5.3174133]
[1641234406426,1.54072322,3763.2,3763.1,5.3174133]
[1641234406825,3.67570376,3763.2,3763.1,5.3174133]
[1641234407226,3.70661996,3763.2,3763.1,5.3174133]
[1641234407431,1.24072322,3763.2,3763.1,5.3174133]
[1641234408228,3.72529101,3763.2,3763.1,5.3174133]
[1641234408829,1.24072322,3763.2,3763.1,5.3174133]
[1641234409460,3.68286456,3763.2,3763.1,5.3174133]
[1641234409660,1.24072322,3763.2,3763.1,5.3174133]
[1641234409862,1.54072322,3763.2,3763.1,5.3174133]
[1641234410865,4.2247047,3763.2,3763.1,5.3174133]
[1641234411868,1.54072322,3763.2,3763.1,5.3174133]
[1641234412469,1.24072322,3763.2,3763.1,5.3174133]
[1641234412936,3.9247047,3763.2,3763.1,5.3174133]
[1641234413334,0.00102708,3763.2,3763.1,7.07123112]
[1641234413538,0.00102708,3763.2,3763.1,8.08179193]
[1641234421011,2.44931201,3763.2,3763.1,8.08179193]
[1641234421208,1.24072322,3763.2,3763.1,8.08179193]
[1641234422008,1.24072322,3763.2,3763.1,6.32797411]
[1641234422511,1.90522322,3763.2,3763.1,6.32797411]
[1641234423711,1.90514556,3763.2,3763.1,6.32797411]
[1641234423973,1.90724522,3763.2,3763.1,6.32797411]
[1641234427378,1.90724522,3763.2,3763.1,5.3174133]
[1641234430719,2.20724522,3763.2,3763.1,5.3174133]
[1641234431962,1.90724522,3763.2,3763.1,5.3174133]
[1641234432863,4.38910227,3763.2,3763.1,5.3174133]
[1641234433067,4.77110227,3763.2,3763.1,5.3174133]
[1641234433768,5.07110227,3763.2,3763.1,5.3174133]
[1641234434268,7.75508375,3763.2,3763.1,5.3174133]
[1641234436726,5.2732267,3763.2,3763.1,5.3174133]
[1641234437030,7.75099222,3763.2,3763.1,5.3174133]
[1641234438027,5.2732267,3763.2,3763.1,5.3174133]
[1641234438229,4.9732267,3763.2,3763.1,5.3174133]
[1641234439671,2.28924522,3763.2,3763.1,5.3174133]
[1641234440674,1.24274522,3763.2,3763.1,5.3174133]
[1641234441774,1.54274522,3763.2,3763.1,7.15324085]
[1641234442175,1.24274522,3763.2,3763.1,7.15324085]
[1641234455375,1.24274522,3763.2,3763.1,5.3174133]
[1641234465834,1.24274522,3763.2,3763.1,7.13965328]
[1641234467838,1.24274522,3763.2,3763.1,5.3174133]
[1641234470079,1.24274522,3763.2,3763.1,7.15350496]
[1641234470678,3.65986278,3763.2,3763.1,7.15350496]
[1641234470886,3.95986278,3763.2,3763.1,7.15350496]
[1641234471281,4.34186278,3763.2,3763.1,5.3174133]
[1641234471683,4.04186278,3763.2,3763.1,5.3174133]
[1641234473320,6.72584426,3763.2,3763.1,5.3174133]
[1641234474223,4.04186278,3763.2,3763.1,5.3174133]
[1641234474425,4.0774326,3763.2,3763.1,5.3174133]
[1641234475927,6.77853799,3763.2,3763.1,5.3174133]
[1641234478782,1.62474522,3763.2,3763.1,5.3174133]
[1641234478984,4.09651231,3763.2,3763.1,5.3174133]
[1641234479684,6.7975714,3763.2,3763.1,5.3174133]
[1641234479983,6.78995657,3763.2,3763.1,5.3174133]
[1641234480428,7.08995657,3763.2,3763.1,5.3174133]
[1641234480828,4.38889748,3763.2,3763.1,5.3174133]
[1641234481431,5.38889748,3763.2,3763.1,5.3174133]
[1641234484174,4.39160648,3763.2,3763.1,5.3174133]
[1641234484976,1.92745422,3763.2,3763.1,5.3174133]
[1641234485580,1.62745422,3763.2,3763.1,5.3174133]
[1641234485978,1.24545422,3763.2,3763.1,5.3174133]
[1641234488837,1.24545422,3763.2,3763.1,7.06755017]
[1641234491341,1.24545422,3763.2,3763.1,5.3174133]
[1641234493879,1.24545422,3763.2,3763.1,7.06684805]
[1641234496336,1.24545422,3763.2,3763.1,7.06423475]
[1641234496537,1.24545422,3763.2,3763.1,7.06684805]
[1641234497037,1.24545422,3763.2,3763.1,5.3174133]
[1641234498238,1.24545422,3763.2,3763.1,7.06554191]
[1641234500580,1.24545422,3763.2,3763.1,7.36554191]
[1641234506142,1.24545422,3763.2,3763.1,7.06554191]
[1641234510428,1.24545422,3763.2,3763.1,5.3174133]
[1641234510634,1.24545422,3763.2,3763.1,5.31973634]
[1641234512929,1.24545422,3763.2,3763.1,7.0747338]
[1641234513530,1.24545422,3763.2,3763.1,5.31973634]
[1641234516084,1.24545422,3763.2,3763.1,7.07486837]
[1641234522971,1.24545422,3763.2,3763.1,7.37486837]
[1641234523171,1.24545422,3763.2,3763.1,7.07486837]
[1641234527029,1.24545422,3763.2,3763.1,7.37486837]
[1641234530678,1.24545422,3763.2,3763.1,7.07486837]
[1641234533125,1.24545422,3763.2,3763.1,7.37486837]
[1641234535133,1.24545422,3763.2,3763.1,7.07486837]
[1641234542847,1.24545422,3763.2,3763.1,5.31973634]
[1641234544276,1.24064556,3763.2,3763.1,5.31973634]
[1641234546686,1.24064556,3763.2,3763.1,7.07575634]
[1641234546984,1.24064556,3763.2,3763.1,7.07272424]
[1641234551581,1.23929896,3763.2,3763.1,7.07272424]
[1641234554891,1.23929896,3763.2,3763.1,7.06592874]
[1641234559079,1.23929896,3763.2,3763.1,7.06331544]
[1641234559279,1.23929896,3763.2,3763.1,7.06592874]
[1641234563828,1.24014289,3763.2,3763.1,7.06592874]
[1641234568123,1.24014289,3763.2,3763.1,7.01592874]
[1641234576797,1.24014289,3763.2,3763.1,7.31592874]
[1641234583587,1.24014289,3763.2,3763.1,7.01592874]
[1641234590723,1.24014289,3763.2,3763.1,7.12128774]
[1641234600744,1.24014289,3763.2,3763.1,7.01592874]
[1641234602539,1.24014289,3763.2,3763.1,7.12128674]
[1641234604594,3.71606355,3763.2,3763.1,7.12128674]
[1641234604894,4.09806355,3763.2,3763.1,7.12128674]
[1641234605091,4.49966355,3763.2,3763.1,7.12128674]
[1641234605293,4.50206355,3763.2,3763.1,7.12128674]
[1641234605795,4.50126355,3763.2,3763.1,7.12128674]
[1641234606195,4.19966355,3763.2,3763.1,7.12128674]
[1641234606398,1.62214289,3763.2,3763.1,7.12128674]
[1641234606594,4.32320198,3763.2,3763.1,5.36526674]
[1641234606796,4.62320198,3763.2,3763.1,5.36526674]
[1641234606996,7.08714773,3763.2,3763.1,5.36526674]
[1641234607596,4.38608864,3763.2,3763.1,5.36526674]
[1641234607835,4.37291701,3763.2,3763.1,5.36526674]
[1641234608035,1.92214289,3763.2,3763.1,5.36526674]
[1641234608735,4.62326906,3763.2,3763.1,5.36526674]
[1641234609536,4.62326906,3763.2,3763.1,5.38635978]
[1641234609735,7.06592938,3763.2,3763.1,5.38635978]
[1641234609945,4.62326906,3763.2,3763.1,5.38635978]
[1641234611345,1.92214289,3763.2,3763.1,5.38635978]
[1641234612207,1.62214289,3763.2,3763.1,5.38635978]
[1641234612616,1.62214289,3763.2,3763.1,5.28100178]
[1641234613216,1.24014289,3763.2,3763.1,5.28100178]
[1641234617353,1.24014289,3763.2,3763.1,5.38636078]
[1641234625949,1.24014289,3763.2,3763.1,6.99605757]
[1641234627385,1.24014289,3763.2,3763.1,6.89069857]
[1641234628791,1.24014289,3763.2,3763.1,6.99605757]
[1641234629493,1.24014289,3763.2,3763.1,10.4160197]
[1641234629790,1.24014289,3763.2,3763.1,10.7160197]
[1641234629989,1.24014289,3763.2,3763.1,11.0980197]
[1641234630673,0.00084393,3763.2,3763.1,8.57168535]
[1641234631273,0.00084393,3763.2,3763.1,8.62798535]
[1641234631475,0.00084393,3763.2,3763.1,9.95647535]
[1641234631875,0.00084393,3763.2,3763.1,9.91774757]
[1641234632079,0.00084393,3763.2,3763.1,9.86144757]
[1641234632476,0.00084393,3763.2,3763.1,12.36325273]
[1641234634906,0.00084393,3763.2,3763.1,9.86144757]
[1641234635311,0.00084393,3763.2,3763.1,9.00654757]
[1641234636709,0.00084393,3763.2,3763.1,11.46601448]
[1641234637114,0.00084393,3763.2,3763.1,9.00654757]
[1641234637743,0.00084393,3763.2,3763.1,11.4668097]
[1641234638743,0.00084393,3763.2,3763.1,9.00654757]
[1641234639143,0.00084393,3763.2,3763.1,11.46084707]
[1641234639745,0.00084393,3763.2,3763.1,11.51994707]
[1641234640450,0.00084393,3763.2,3763.1,12.51994707]
[1641234640648,0.00084393,3763.2,3763.1,13.25894707]
[1641234643090,0.00084393,3763.2,3763.1,12.51994707]
[1641234643893,0.00084393,3763.2,3763.1,9.06564757]
[1641234644795,0.00084393,3763.2,3763.1,11.53551983]
[1641234645247,0.00084393,3763.2,3763.1,9.06564757]
[1641234645451,0.00084393,3763.2,3763.1,8.68364757]
[1641234646052,0.00084393,3763.2,3763.1,11.1626539]
[1641234648156,0.00084393,3763.2,3763.1,8.38364757]
[1641234648988,0.01288214,3763.9,3763.2,5.2]
[1641234649194,0.01288214,3763.9,3763.4,2.388153]
[1641234649389,0.00341054,3763.8,3763.5,5.374]
[1641234649590,1.37127977,3763.8,3763.5,5.39509304]
[1641234649789,0.00284211,3763.7,3763.5,5.39509304]
[1641234650208,1.36786923,3763.8,3763.5,5.39509304]
[1641234650209,0.00227369,3763.6,3763.5,5.39509304]
[1641234653242,0.00227369,3763.6,3763.5,8.15186413]
[1641234653942,1.36781292,3764.1,3763.6,8.4022]
[1641234654146,1.36781292,3764.1,3763.8,0.6641399]
[1641234654342,0.00227369,3764.0,3763.9,0.3]
[1641234654743,0.00227369,3764.0,3763.9,5.68394652]
[1641234654943,0.00227369,3764.0,3763.9,5.69449304]
[1641234655547,0.00227369,3764.0,3763.9,8.78069768]
[1641234655951,0.00227369,3764.0,3763.9,6.35863304]
[1641234657696,0.00227369,3764.0,3763.9,7.97669359]
[1641234658497,0.00227369,3764.0,3763.9,7.01255359]
[1641234660355,0.03311512,3764.0,3763.9,7.01255359]
[1641234662053,1.41365522,3764.0,3763.9,7.01255359]
[1641234664993,1.41640888,3764.0,3763.9,7.01255359]
[1641234673607,1.41640888,3764.0,3763.9,9.81415135]
[1641234673809,0.0073087,3764.6,3763.9,16.11415135]
[1641234674009,0.0073087,3764.6,3763.9,10.82655555]
[1641234674209,0.00284212,3764.5,3763.9,10.80546251]
[1641234674409,0.00284212,3764.5,3764.2,1.33864652]
[1641234674610,0.0073087,3764.6,3764.3,3.0874603]
[1641234674611,0.0022737,3764.4,3764.3,3.0874603]
[1641234674811,0.0022737,3764.4,3764.3,8.4603603]
[1641234675114,0.0022737,3764.4,3764.3,6.03697]
[1641234675745,0.0022737,3764.4,3764.3,8.43209101]
[1641234676645,0.0022737,3764.4,3764.3,6.03697]
[1641234676845,0.0022737,3764.4,3764.3,8.42642877]
[1641234677045,0.0022737,3764.4,3764.3,6.03697]
[1641234677245,0.0022737,3764.4,3764.3,8.4267766]
[1641234678447,0.0022737,3764.4,3764.3,6.03697]
[1641234678850,0.0022737,3764.4,3764.3,5.3729]
[1641234680000,0.0022737,3764.4,3764.3,5.39399304]
[1641234682400,0.00316504,3764.4,3764.3,8.18231059]
[1641234682862,0.00316504,3764.4,3764.3,8.21418573]
[1641234684463,0.00316504,3764.4,3764.3,8.88088903]
[1641234685063,0.00316504,3764.4,3764.3,6.36069634]
[1641234685668,0.00316504,3764.4,3764.3,5.69660634]
[1641234686270,0.00316504,3764.4,3764.3,8.17446098]
[1641234686891,0.00316504,3764.4,3764.3,8.83853098]
[1641234688201,0.00316504,3764.4,3764.3,8.17446098]
[1641234688794,0.00316504,3764.4,3764.3,8.83855098]
[1641234691456,0.00316504,3764.4,3764.3,6.36069634]
[1641234692256,0.00316504,3764.4,3764.3,5.69660634]
[1641234694302,1.26649676,3764.4,3764.3,7.42807141]
[1641234695602,0.00316504,3764.4,3764.3,7.42807141]
[1641234695902,0.00316504,3764.4,3764.3,5.69660634]
[1641234696603,1.26647044,3764.4,3764.3,7.42786068]
[1641234696802,1.26647044,3764.4,3764.3,9.87171435]
[1641234697208,0.03083816,3764.5,3764.4,1.0536]
[1641234697209,0.0001086,3764.5,3764.4,1.0536]
[1641234697406,0.0001086,3764.5,3764.4,9.26005073]
[1641234697858,0.0001086,3764.5,3764.4,9.28114377]
[1641234698662,0.0001086,3764.5,3764.4,10.28114377]
[1641234699760,0.0001086,3764.5,3764.4,12.44535246]
[1641234699963,0.03083767,3764.5,3764.4,28.00535246]
[1641234700564,0.03083767,3764.5,3764.4,12.44535246]
[1641234701822,0.03083767,3764.5,3764.4,9.61160173]
[1641234704224,0.03083767,3764.5,3764.4,7.82939304]
[1641234705028,0.03083767,3764.5,3764.4,9.61160173]
[1641234706049,0.03083767,3764.5,3764.4,8.76770173]
[1641234708250,0.03083767,3764.5,3764.4,7.17600173]
[1641234708749,0.03083767,3764.5,3764.4,7.56805103]
[1641234709398,0.03083767,3764.5,3764.4,5.78584234]
[1641234710805,0.03083767,3764.5,3764.4,6.78584234]
[1641234712507,0.03083767,3764.5,3764.4,8.56805103]
[1641234713161,0.03083767,3764.5,3764.4,6.78584234]
[1641234715862,0.03083767,3764.5,3764.4,7.17600173]
[1641234716064,0.17903767,3764.5,3764.4,7.17600173]
[1641234717109,0.17903767,3764.5,3764.4,5.39379304]
[1641234717511,0.03083767,3764.5,3764.4,5.39379304]
[1641234718012,1.3013785,3764.5,3764.4,7.11977736]
[1641234723461,1.30218257,3764.5,3764.4,7.11977736]
[1641234739601,1.30218257,3764.5,3764.4,8.11977736]
[1641234740203,1.30218257,3764.5,3764.4,7.11977736]
[1641234747104,1.30218257,3764.5,3764.4,7.12239066]
[1641234747503,1.30218257,3764.5,3764.4,8.12239066]
[1641234748305,1.30218257,3764.5,3764.4,7.12239066]
[1641234748608,0.03164174,3764.5,3764.4,7.12239066]
[1641234749410,1.30940042,3764.5,3764.4,7.12239066]
[1641234750108,0.03164174,3764.5,3764.4,7.12239066]
[1641234751981,1.30268178,3764.5,3764.4,7.12239066]
[1641234752483,1.60268178,3764.5,3764.4,7.12239066]
[1641234752684,1.60268178,3764.5,3764.3,0.00232304]
[1641234752685,5.69926338,3764.5,3764.3,0.00232304]
[1641234752884,2.72182556,3764.4,3764.3,0.00232304]
[1641234753084,3.10382556,3764.4,3764.3,0.00232304]
[1641234753883,0.382,3764.4,3764.3,0.00232304]
[1641234756524,2.84826925,3764.4,3764.3,0.00232304]
[1641234758260,0.382,3764.4,3764.3,0.00232304]
[1641234758666,2.85428808,3764.4,3764.3,0.00232304]
[1641234759067,0.382,3764.4,3764.3,0.00232304]
[1641234764226,2.86823834,3764.4,3764.3,0.00232304]
[1641234764824,0.382,3764.4,3764.3,0.00232304]
[1641234767080,2.73196384,3764.5,3764.3,0.00232304]
[1641234767477,0.03083767,3764.5,3764.3,0.00232304]
[1641234774667,0.69513767,3764.5,3764.3,0.00232304]
[1641234774870,1.4430121,3764.4,3764.3,0.00232304]
[1641234775971,1.7430121,3764.4,3764.3,0.00232304]
[1641234776172,4.22328617,3764.4,3764.3,0.00232304]
[1641234776837,1.7430121,3764.4,3764.3,0.00232304]
[1641234781885,1.77385104,3764.4,3764.3,0.00232304]
[1641234786626,1.47385104,3764.4,3764.3,0.00232304]
[1641234791384,0.03083894,3764.4,3764.3,0.00232304]
[1641234794334,1.33646602,3764.4,3764.3,0.00232304]
[1641234800732,6.49567055,3764.4,3764.3,0.00232304]
[1641234803888,2.38280602,3764.4,3764.3,0.00232304]
[1641234806391,2.68280602,3764.4,3764.3,0.00232304]
[1641234806618,5.15673292,3764.4,3764.3,0.00232304]
[1641234806822,2.68280602,3764.4,3764.3,0.00232304]
[1641234809326,5.18048988,3764.4,3764.3,0.00232304]
[1641234813087,6.41828988,3764.4,3764.3,0.00232304]
[1641234813285,6.82388988,3764.4,3764.3,0.00232304]
[1641234813585,9.49365831,3764.4,3764.3,0.00232304]
[1641234813784,9.49205831,3764.4,3764.3,0.00232304]
[1641234814027,6.82628988,3764.4,3764.3,0.00232304]
[1641234814228,10.42902206,3764.4,3764.3,0.00232304]
[1641234814429,10.42822206,3764.4,3764.3,0.00232304]
[1641234814831,10.42502206,3764.4,3764.3,0.00232304]
[1641234815029,10.42422206,3764.4,3764.3,0.00232304]
[1641234815231,10.42502206,3764.4,3764.3,0.00232304]
[1641234815433,6.82468988,3764.4,3764.3,0.00232304]
[1641234815637,6.82548988,3764.4,3764.3,1.809e-05]
[1641234816234,6.82468988,3764.4,3764.3,1.809e-05]
[1641234816435,6.82308988,3764.4,3764.3,1.809e-05]
[1641234816635,6.82468988,3764.4,3764.3,1.809e-05]
[1641234816835,6.82308988,3764.4,3764.3,1.809e-05]
[1641234817776,6.58688988,3764.4,3764.3,1.809e-05]
[1641234817978,6.58608988,3764.4,3764.3,1.809e-05]
[1641234818680,6.58288988,3764.4,3764.3,1.809e-05]
[1641234818876,6.58208988,3764.4,3764.3,1.809e-05]